bitfinex-derivatives/quotes_BTCF0:USTF0_20241029
["timestamp","ask_amount","ask_price","bid_price","bid_amount"]
[1730233252768,0.19933245,72258.0,72257.0,0.07749854]
[1730233254369,0.26853845,72258.0,72257.0,0.00829154]
[1730233254570,0.26853845,72258.0,72257.0,0.07749854]
[1730233254870,0.19933245,72258.0,72257.0,0.07749854]
[1730233255258,0.19933245,72262.0,72257.0,0.07749854]
[1730233255477,0.19933245,72262.0,72261.0,0.069203]
[1730233255771,0.3608,72264.0,72263.0,0.069202]
[1730233255963,0.069203,72262.0,72261.0,0.5863572]
[1730233256164,0.069203,72262.0,72261.0,0.430002]
[1730233256165,0.26853545,72262.0,72261.0,0.430002]
[1730233256577,0.26853545,72262.0,72261.0,0.3608]
[1730233257158,0.26853545,72262.0,72257.0,0.00829154]
[1730233257363,0.069206,72258.0,72257.0,0.00829154]
[1730233257767,0.069213,72251.0,72244.0,0.3608]
[1730233257971,0.069219,72245.0,72244.0,0.3608]
[1730233258375,0.484459,72245.0,72244.0,0.3608]
[1730233258573,0.069219,72245.0,72244.0,0.3608]
[1730233259378,0.069224,72240.0,72239.0,0.00739305]
[1730233259567,0.26855645,72240.0,72239.0,0.00739305]
[1730233259763,0.19933245,72246.0,72239.0,0.03247121]
[1730233259967,0.06922,72244.0,72243.0,0.069221]
[1730233260366,0.19933245,72246.0,72239.0,0.00739305]
[1730233260570,0.19933245,72246.0,72245.0,0.069219]
[1730233261878,0.3608,72250.0,72249.0,0.069215]
[1730233262476,0.430014,72250.0,72249.0,0.069215]
[1730233262867,0.3608,72250.0,72249.0,0.069215]
[1730233263373,0.430014,72250.0,72249.0,0.069215]
[1730233263575,0.3608,72250.0,72249.0,0.069215]
[1730233264171,0.3608,72250.0,72249.0,0.0940332]
[1730233264977,0.3608,72258.0,72254.0,0.06921]
[1730233265167,0.3608,72258.0,72257.0,0.069207]
[1730233265573,0.3608,72258.0,72257.0,0.63928178]
[1730233266171,0.26852145,72278.0,72277.0,0.069188]
[1730233267472,0.8137449,72278.0,72257.0,0.38517942]
[1730233267782,0.26853845,72258.0,72257.0,0.3608]
[1730233267985,0.26853845,72258.0,72245.0,0.3608]
[1730233268171,0.26855045,72246.0,72245.0,0.430018]
[1730233271281,0.00104001,72254.0,72253.0,0.069211]
[1730233271488,0.19933245,72265.0,72253.0,0.069211]
[1730233271780,0.3608,72264.0,72260.0,0.069204]
[1730233272178,0.069202,72263.0,72260.0,0.069204]
[1730233272573,0.069203,72262.0,72260.0,0.069204]
[1730233272978,0.3608,72264.0,72260.0,0.069204]
[1730233273188,0.3608,72264.0,72260.0,0.09461804]
[1730233273576,0.3608,72264.0,72260.0,0.78336174]
[1730233273774,0.429993,72272.0,72260.0,0.78336174]
[1730233273978,0.429993,72272.0,72271.0,0.069194]
[1730233274387,0.429993,72272.0,72260.0,0.36820174]
[1730233274388,0.3608,72272.0,72260.0,0.02541404]
[1730233274592,0.3608,72272.0,72252.0,0.069212]
[1730233274593,0.069211,72253.0,72252.0,0.069212]
[1730233275487,0.069211,72253.0,72252.0,0.09361636]
[1730233276692,0.26854245,72256.0,72255.0,0.069209]
[1730233276893,0.06921,72256.0,72255.0,0.069209]
[1730233277095,0.069211,72253.0,72252.0,0.09361636]
[1730233277397,0.069211,72253.0,72246.0,0.3608]
[1730233277598,0.26854945,72247.0,72246.0,0.3608]
[1730233277799,0.069217,72247.0,72246.0,0.3608]
[1730233278892,1.5,72252.0,72246.0,0.3608]
[1730233279094,0.069217,72251.0,72250.0,0.069213]
[1730233280289,0.12025971,72251.0,72250.0,0.069213]
[1730233280693,0.12025971,72251.0,72246.0,0.3608]
[1730233280895,0.069217,72247.0,72246.0,0.430018]
[1730233281095,0.12025971,72247.0,72246.0,0.430018]
[1730233281294,0.31959216,72247.0,72246.0,0.430018]
[1730233282297,0.12025971,72247.0,72246.0,0.430018]
[1730233283202,0.31959216,72247.0,72246.0,0.430018]
[1730233283391,0.31956221,72247.0,72246.0,0.430018]
[1730233284102,0.31956221,72247.0,72246.0,0.3608]
[1730233284694,0.31956221,72247.0,72246.0,0.430018]
[1730233286600,1.50104001,72252.0,72246.0,0.99524396]
[1730233286601,0.00104001,72252.0,72246.0,0.99524396]
[1730233286803,0.19933245,72257.0,72256.0,0.069208]
[1730233287010,0.32706557,72257.0,72256.0,0.069208]
[1730233287305,0.26853945,72257.0,72256.0,0.069208]
[1730233289191,0.61453245,72257.0,72246.0,0.36152]
[1730233289400,0.26854945,72247.0,72246.0,0.430018]
[1730233289801,0.069217,72247.0,72246.0,0.430018]
[1730233290406,0.069217,72247.0,72246.0,0.4343463]
[1730233290901,0.069217,72247.0,72246.0,0.45871077]
[1730233291097,0.26854945,72247.0,72246.0,0.45871077]
[1730233292602,0.26854945,72247.0,72246.0,0.45438247]
[1730233293411,0.26854945,72247.0,72246.0,0.38516447]
[1730233294614,0.27125505,72247.0,72246.0,0.38516447]
[1730233295396,0.32246619,72247.0,72246.0,0.38516447]
[1730233296598,0.38086543,72247.0,72246.0,0.45438247]
[1730233297202,0.32246619,72247.0,72246.0,0.45438247]
[1730233298011,0.05391674,72247.0,72246.0,0.45438247]
[1730233298312,0.081992,72273.0,72256.0,0.069208]
[1730233298498,0.081992,72273.0,72265.0,0.0692]
[1730233298499,0.429999,72266.0,72265.0,0.0692]
[1730233298699,0.429999,72266.0,72257.0,0.26549908]
[1730233298909,0.069204,72260.0,72259.0,0.069204]
[1730233299109,0.069208,72256.0,72255.0,0.430009]
[1730233299409,0.26854045,72256.0,72255.0,0.430009]
[1730233301313,0.069205,72260.0,72255.0,0.430009]
[1730233301507,0.069203,72264.0,72263.0,0.0692]
[1730233302509,0.56129245,72266.0,72265.0,0.0692]
[1730233302713,0.62933145,72266.0,72265.0,0.0692]
[1730233305312,0.069206,72259.0,72258.0,0.069203]
[1730233305514,0.069206,72259.0,72256.0,0.02521232]
[1730233305515,0.069207,72257.0,72256.0,0.02521232]
[1730233305711,0.069208,72256.0,72255.0,0.3608]
[1730233306112,0.069208,72256.0,72255.0,0.430009]
[1730233306823,0.069208,72256.0,72255.0,0.45450595]
[1730233309408,0.069208,72256.0,72255.0,0.38529695]
[1730233310518,0.20218641,72256.0,72255.0,0.38529695]
[1730233314015,0.069208,72256.0,72255.0,0.38529695]
[1730233314319,0.430008,72256.0,72255.0,0.02449695]
[1730233314509,0.430008,72256.0,72245.0,0.069218]
[1730233314712,0.20219541,72247.0,72245.0,0.069218]
[1730233315424,0.20219541,72247.0,72246.0,0.38585011]
[1730233318116,0.20219541,72247.0,72246.0,0.45506811]
[1730233318525,0.25715841,72247.0,72246.0,0.45506811]
[1730233319731,0.00108,72265.0,72246.0,1.37305201]
[1730233319933,0.00108,72265.0,72264.0,0.3608]
[1730233320229,0.13297841,72265.0,72264.0,0.36512729]
[1730233320426,0.13297841,72265.0,72264.0,0.52485433]
[1730233320725,0.13297841,72265.0,72264.0,0.36512729]
[1730233320926,0.13297841,72269.0,72264.0,0.43432729]
[1730233321125,0.13297841,72274.0,72265.0,0.00432729]
[1730233321324,0.13297841,72274.0,72268.0,0.069196]
[1730233321627,0.49377841,72269.0,72268.0,0.069196]
[1730233323222,0.13297841,72269.0,72268.0,0.069196]
[1730233323423,0.3608,72278.0,72268.0,0.15534445]
[1730233323424,0.49377841,72278.0,72268.0,0.15534445]
[1730233323631,0.49377841,72278.0,72276.0,0.069189]
[1730233326031,0.49377841,72278.0,72276.0,0.09389066]
[1730233326032,0.3608,72278.0,72276.0,0.09389066]
[1730233326221,0.49377841,72278.0,72277.0,0.00432653]
[1730233326423,0.49377841,72278.0,72276.0,0.09389066]
[1730233326721,0.3608,72278.0,72277.0,0.15711962]
[1730233326919,0.3608,72278.0,72277.0,0.27464612]
[1730233327325,0.3608,72278.0,72277.0,0.27031962]
[1730233327523,0.3608,72278.0,72277.0,0.27464609]
[1730233328434,0.3608,72278.0,72277.0,0.27464608]
[1730233328639,2.1e-07,72289.0,72288.0,0.069178]
[1730233328835,0.13297841,72305.0,72290.0,0.069175]
[1730233329023,0.172256,72311.0,72304.0,0.069162]
[1730233329333,0.069159,72308.0,72304.0,0.069162]
[1730233329833,0.13297841,72305.0,72304.0,0.069162]
[1730233331419,0.1076,72306.0,72304.0,0.069162]
[1730233331632,0.23607841,72311.0,72310.0,0.069157]
[1730233331934,0.23607841,72311.0,72301.0,0.15120274]
[1730233332124,0.13297841,72303.0,72302.0,0.069164]
[1730233332526,0.13297841,72303.0,72300.0,0.31924155]
[1730233332527,0.25324405,72303.0,72300.0,0.31924155]
[1730233332730,0.12026564,72302.0,72300.0,0.34430921]
[1730233333032,0.13297841,72303.0,72300.0,0.34430921]
[1730233333236,0.276265,72301.0,72300.0,0.31924155]
[1730233333838,0.3320297,72301.0,72300.0,0.31924155]
[1730233334137,0.069178,72288.0,72287.0,0.002075]
[1730233334341,0.069182,72283.0,72282.0,0.3608]
[1730233334524,0.20216041,72283.0,72282.0,0.3608]
[1730233335426,2.11720041,72283.0,72282.0,0.3608]
[1730233335639,1.70216041,72283.0,72282.0,0.3608]
[1730233335935,2.11720041,72283.0,72282.0,0.3608]
[1730233336523,1.76858761,72283.0,72282.0,0.3608]
[1730233337242,2.11444561,72283.0,72273.0,0.3608]
[1730233337424,0.56020561,72274.0,72256.0,0.0064]
[1730233337738,0.56020561,72274.0,72250.0,0.3683]
[1730233337739,0.19940561,72262.0,72250.0,0.3608]
[1730233337937,0.3608,72268.0,72264.0,0.19940561]
[1730233338127,0.3608,72268.0,72267.0,0.069198]
[1730233338929,0.3608,72268.0,72265.0,0.0996]
[1730233339239,0.3608,72268.0,72264.0,0.069201]
[1730233339240,0.069199,72266.0,72264.0,0.069201]
[1730233339735,0.3608,72268.0,72267.0,0.069198]
[1730233340249,0.56020561,72268.0,72261.0,0.00207569]
[1730233340540,0.62940861,72262.0,72261.0,0.00207569]
[1730233341335,1.04456861,72262.0,72261.0,0.00207569]
[1730233343035,0.069211,72254.0,72253.0,0.02496299]
[1730233343236,0.069211,72254.0,72253.0,0.069211]
[1730233346636,0.3608,72256.0,72255.0,0.069209]
[1730233347341,0.430008,72256.0,72255.0,0.069209]
[1730233347737,0.3608,72256.0,72247.0,0.38512996]
[1730233347941,0.069212,72252.0,72251.0,0.069211]
[1730233351437,0.430009,72256.0,72255.0,0.069209]
[1730233352041,0.3608,72256.0,72247.0,0.38512996]
[1730233352239,0.069214,72252.0,72251.0,0.069213]
[1730233353745,0.43001,72256.0,72255.0,0.069209]
[1730233354454,0.069212,72252.0,72251.0,0.069213]
[1730233355141,0.3608,72256.0,72247.0,0.38512996]
[1730233355345,0.430009,72256.0,72255.0,0.069209]
[1730233359650,0.069213,72252.0,72251.0,0.069213]
[1730233362945,0.069211,72255.0,72254.0,0.069209]
[1730233364149,0.3608,72256.0,72252.0,0.04154408]
[1730233364354,0.3608,72256.0,72251.0,0.11075708]
[1730233364655,0.069212,72253.0,72252.0,0.069212]
[1730233365649,0.069212,72253.0,72252.0,0.11075608]
[1730233366356,0.069212,72253.0,72252.0,0.069212]
[1730233366662,0.069212,72253.0,72252.0,0.11075608]
[1730233366951,0.13297061,72253.0,72251.0,0.04154408]
[1730233367152,0.069219,72245.0,72240.0,0.00072]
[1730233367353,0.069219,72245.0,72230.0,0.06876099]
[1730233367354,0.069224,72240.0,72230.0,0.05539212]
[1730233367552,0.069224,72240.0,72226.0,0.3608]
[1730233367553,1.569224,72240.0,72232.0,0.03014096]
[1730233368657,1.569224,72240.0,72232.0,0.09937196]
[1730233369452,1.569224,72240.0,72232.0,0.03014096]
[1730233374246,0.069226,72237.0,72232.0,0.00372265]
[1730233374560,0.20219661,72237.0,72232.0,0.00372265]
[1730233374761,0.20219661,72237.0,72225.0,0.01190503]
[1730233374762,0.71532,72236.0,72225.0,0.01190503]
[1730233375058,1.12051183,72226.0,72211.0,0.01553729]
[1730233375254,0.069254,72208.0,72207.0,0.00773356]
[1730233375452,0.33519522,72208.0,72207.0,0.00773356]
[1730233375953,0.75067522,72208.0,72207.0,0.00773356]
[1730233376456,0.75067522,72208.0,72200.0,0.00256897]
[1730233376457,0.069261,72201.0,72200.0,0.00256897]
[1730233376666,0.56303161,72201.0,72200.0,0.00256897]
[1730233377461,0.069272,72190.0,72183.0,0.07268163]
[1730233377655,0.56304261,72190.0,72183.0,0.00340363]
[1730233378162,0.3608,72201.0,72189.0,0.07103046]
[1730233378348,0.13297061,72198.0,72189.0,0.219747]
[1730233378545,0.13297061,72194.0,72193.0,0.069269]
[1730233378749,0.3608,72201.0,72200.0,0.069262]
[1730233378950,0.49377061,72201.0,72194.0,0.15132757]
[1730233379166,0.49377061,72201.0,72189.0,0.02722158]
[1730233379167,0.13297061,72195.0,72189.0,0.02722158]
[1730233379351,0.20224261,72190.0,72189.0,0.00175746]
[1730233380251,0.20224261,72190.0,72171.0,0.36291542]
[1730233380252,0.069275,72186.0,72179.0,0.00774507]
[1730233380548,0.56304761,72184.0,72179.0,0.00774507]
[1730233381060,0.56304761,72184.0,72181.0,0.07362607]
[1730233382761,0.49377061,72184.0,72183.0,0.07268163]
[1730233383172,0.49377061,72184.0,72183.0,0.069278]
[1730233383456,0.3608,72184.0,72183.0,0.20477814]
[1730233383761,0.49377061,72184.0,72183.0,0.20477814]
[1730233384348,0.49377061,72184.0,72183.0,0.20911047]
[1730233385458,0.49377061,72184.0,72183.0,0.20477814]
[1730233386555,0.49377061,72184.0,72181.0,0.00434607]
[1730233386757,0.069278,72183.0,72181.0,0.07362607]
[1730233386953,0.069278,72183.0,72181.0,0.00434607]
[1730233387861,0.49501062,72184.0,72181.0,0.00434607]
[1730233388056,0.49377061,72184.0,72183.0,0.069278]
[1730233388255,0.56304761,72184.0,72183.0,0.069278]
[1730233389148,0.49377061,72184.0,72181.0,0.00434607]
[1730233389361,0.069278,72183.0,72181.0,0.00434607]
[1730233389568,0.430078,72183.0,72181.0,0.00434607]
[1730233390361,0.430078,72183.0,72182.0,0.07614142]
[1730233391067,0.430078,72183.0,72182.0,0.00686242]
[1730233392056,0.56304861,72183.0,72182.0,0.00686242]
[1730233393071,0.430078,72183.0,72182.0,0.00686242]
[1730233393270,0.56304861,72183.0,72182.0,0.00686242]
[1730233394660,0.069281,72180.0,72179.0,0.00774507]
[1730233394972,0.069285,72176.0,72175.0,0.00512735]
[1730233395267,0.56305561,72176.0,72175.0,0.00512735]
[1730233395755,0.069296,72165.0,72151.0,0.075708]
[1730233395953,0.069296,72165.0,72164.0,0.07106173]
[1730233395954,0.3608,72165.0,72164.0,0.07106173]
[1730233396470,0.3608,72165.0,72164.0,0.223608]
[1730233396672,0.49377061,72165.0,72164.0,0.223608]
[1730233396868,0.56306661,72165.0,72164.0,0.223608]
[1730233397174,0.56306661,72165.0,72164.0,0.07106173]
[1730233397769,0.56306661,72165.0,72164.0,0.00176473]
[1730233398570,0.20226661,72165.0,72164.0,0.00176473]
[1730233398763,0.56306661,72165.0,72164.0,0.00176473]
[1730233402563,0.69603722,72165.0,72164.0,0.00176473]
[1730233402766,0.069298,72162.0,72161.0,0.00752674]
[1730233405259,0.49501062,72165.0,72161.0,0.00752674]
[1730233405572,0.3608,72165.0,72164.0,0.20226761]
[1730233405767,0.3608,72165.0,72164.0,0.069297]
[1730233406071,0.3608,72165.0,72164.0,0.21600332]
[1730233406372,0.3608,72165.0,72164.0,0.287197]
[1730233406564,0.3608,72165.0,72164.0,0.85517498]
[1730233407070,0.069284,72177.0,72174.0,0.069287]
[1730233407289,0.3608,72178.0,72171.0,0.13297061]
[1730233407580,0.3608,72178.0,72177.0,0.069284]
[1730233408468,0.430083,72178.0,72177.0,0.069284]
[1730233409076,0.069285,72176.0,72175.0,0.02551058]
[1730233409279,0.069292,72169.0,72168.0,0.069292]
[1730233409668,0.069292,72169.0,72168.0,0.22323722]
[1730233409974,0.069292,72169.0,72168.0,0.24803134]
[1730233410279,0.069292,72169.0,72168.0,0.09408612]
[1730233410867,0.069287,72175.0,72174.0,0.069285]
[1730233411375,0.20225761,72175.0,72174.0,0.069285]
[1730233411970,0.069291,72171.0,72170.0,0.06929]
[1730233412369,0.20226161,72171.0,72170.0,0.21411957]
[1730233412582,0.069291,72171.0,72170.0,0.21411957]
[1730233412879,0.13297061,72173.0,72165.0,0.1094]
[1730233413081,0.069285,72177.0,72166.0,0.069294]
[1730233413082,0.20226561,72167.0,72166.0,0.069294]
[1730233413864,0.069297,72163.0,72161.0,0.00752674]
[1730233414070,0.20226861,72162.0,72161.0,0.00752674]
[1730233416172,0.069299,72161.0,72160.0,0.0112147]
[1730233416373,0.069299,72161.0,72157.0,0.00250675]
[1730233416374,0.069302,72158.0,72157.0,0.00250675]
[1730233417171,0.069302,72158.0,72157.0,0.02762987]
[1730233417683,0.20227261,72158.0,72157.0,0.02762987]
[1730233418073,0.2513025,72158.0,72157.0,0.02762987]
[1730233419282,0.11833189,72158.0,72157.0,0.02762987]
[1730233420581,0.2513025,72158.0,72157.0,0.02762987]
[1730233420788,0.2513025,72158.0,72157.0,0.00250675]
[1730233421185,0.11833189,72158.0,72157.0,0.00250675]
[1730233421369,0.17363119,72158.0,72157.0,0.00250675]
[1730233421574,0.11833189,72158.0,72157.0,0.00250675]
[1730233422977,0.17359544,72158.0,72157.0,0.00250675]
[1730233423183,0.069302,72158.0,72157.0,0.00250675]
[1730233438306,0.11700719,72158.0,72157.0,0.00250675]
[1730233438596,0.069302,72158.0,72157.0,0.00250675]
[1730233440992,0.20227261,72158.0,72157.0,0.00250675]
[1730233441188,0.30348151,72158.0,72157.0,0.0010341]
[1730233441992,0.24959505,72158.0,72157.0,0.0010341]
[1730233443187,0.30358272,72158.0,72157.0,0.0010341]
[1730233444183,0.3035373,72158.0,72157.0,0.0010341]
[1730233445096,0.32832902,72158.0,72157.0,0.0010341]
[1730233445485,0.19535841,72158.0,72157.0,0.0010341]
[1730233445999,0.19535841,72158.0,72143.0,9.9e-07]
[1730233446000,0.069313,72147.0,72143.0,9.9e-07]
[1730233446296,0.069313,72147.0,72141.0,6.8e-07]
[1730233446297,0.20228861,72142.0,72141.0,6.8e-07]
[1730233447084,0.069322,72137.0,72131.0,0.00574855]
[1730233447300,0.069337,72122.0,72109.0,0.0064]
[1730233447496,0.430137,72122.0,72106.0,0.069352]
[1730233447696,0.430137,72122.0,72108.0,0.13297061]
[1730233447894,0.3608,72122.0,72121.0,0.6478044]
[1730233448100,0.3608,72122.0,72121.0,0.1625064]
[1730233448288,0.430137,72122.0,72121.0,0.00634453]
[1730233448602,0.430137,72122.0,72118.0,0.00390802]
[1730233448603,0.06934,72119.0,72118.0,0.00390802]
[1730233448800,0.43014,72119.0,72118.0,0.00390802]
[1730233449098,0.43014,72119.0,72110.0,0.00427312]
[1730233449099,0.069344,72115.0,72110.0,0.00427312]
[1730233449299,0.20231461,72115.0,72110.0,0.00427312]
[1730233449502,0.54897061,72115.0,72110.0,0.00427312]
[1730233449698,0.069346,72112.0,72110.0,0.00427312]
[1730233450000,0.20232061,72108.0,72107.0,0.00772362]
[1730233451101,0.3608,72113.0,72112.0,0.069346]
[1730233451310,0.3608,72125.0,72121.0,0.069338]
[1730233451311,0.069336,72123.0,72121.0,0.069338]
[1730233451604,0.3608,72125.0,72112.0,0.20231661]
[1730233451605,0.13297061,72122.0,72112.0,0.15993462]
[1730233451789,0.13297061,72117.0,72116.0,0.069343]
[1730233451996,0.13297061,72118.0,72114.0,0.3608]
[1730233452194,0.20231461,72115.0,72114.0,0.430145]
[1730233453303,0.069344,72115.0,72114.0,0.069345]
[1730233454090,0.13297061,72120.0,72110.0,0.3608]
[1730233454296,0.3608,72125.0,72121.0,0.069335]
[1730233454297,0.069338,72122.0,72121.0,0.069335]
[1730233454898,0.069335,72124.0,72123.0,0.069335]
[1730233455903,0.069339,72121.0,72120.0,0.069338]
[1730233456899,0.36204001,72125.0,72120.0,0.641429]
[1730233457101,0.430136,72125.0,72124.0,0.069335]
[1730233457494,0.430136,72125.0,72116.0,0.069342]
[1730233457495,0.069342,72117.0,72116.0,0.069342]
[1730233457806,0.069345,72115.0,72114.0,0.11936]
[1730233457999,0.069345,72115.0,72110.0,0.3608]
[1730233458000,0.069347,72111.0,72110.0,0.3608]
[1730233458199,0.069347,72111.0,72110.0,0.39047128]
[1730233458505,0.069347,72111.0,72110.0,0.45981941]
[1730233458706,0.069347,72111.0,72110.0,0.39047137]
[1730233458906,0.069347,72111.0,72110.0,0.02533467]
[1730233459104,0.069347,72111.0,72110.0,0.3608]
[1730233459610,0.069349,72109.0,72107.0,0.03235386]
[1730233459798,0.069349,72109.0,72107.0,0.00772362]
[1730233459799,0.20232061,72108.0,72107.0,0.00772362]
[1730233463306,0.98198122,72108.0,72098.0,0.00396756]
[1730233463505,0.069349,72109.0,72093.0,0.00285091]
[1730233463506,0.069364,72094.0,72093.0,0.00285091]
[1730233464598,0.069372,72085.0,72084.0,0.0068541]
[1730233464908,0.3608,72085.0,72084.0,0.0068541]
[1730233465209,0.069359,72099.0,72086.0,0.069371]
[1730233465406,0.069362,72096.0,72095.0,0.069363]
[1730233465598,0.00208124,72100.0,72093.0,0.13297061]
[1730233465799,0.06936,72099.0,72097.0,0.06936]
[1730233466005,0.00208124,72100.0,72099.0,0.069359]
[1730233466208,0.00208124,72100.0,72099.0,0.175959]
[1730233466412,0.00208124,72100.0,72099.0,0.86639899]
[1730233466806,0.20440985,72100.0,72099.0,0.32662154]
[1730233467003,0.20440985,72100.0,72099.0,0.27002254]
[1730233467208,0.069364,72094.0,72093.0,0.02519507]
[1730233467409,0.069364,72094.0,72090.0,0.1066]
[1730233467410,0.13297061,72094.0,72090.0,0.1066]
[1730233467603,0.13297061,72094.0,72090.0,0.295328]
[1730233467604,0.069367,72091.0,72090.0,0.295328]
[1730233467808,0.069367,72091.0,72090.0,0.22596]
[1730233468004,0.069367,72091.0,72090.0,0.41052365]
[1730233468409,0.069367,72091.0,72090.0,0.29116365]
[1730233469409,0.069367,72091.0,72090.0,0.18456365]
[1730233469917,0.069367,72091.0,72090.0,0.0247477]
[1730233470106,0.069372,72085.0,72084.0,0.0068541]
[1730233470303,0.20234261,72085.0,72084.0,0.0068541]
[1730233470502,0.20234261,72085.0,72084.0,0.15457429]
[1730233470907,0.069372,72085.0,72084.0,0.03179174]
[1730233471120,0.20234261,72085.0,72084.0,0.03179174]
[1730233471820,0.20234261,72085.0,72084.0,0.0068541]
[1730233472119,0.97930261,72085.0,72084.0,0.0068541]
[1730233472418,0.069381,72076.0,72075.0,0.00676239]
[1730233472618,0.430181,72076.0,72075.0,0.00676239]
[1730233473111,1.930181,72076.0,72075.0,0.00676239]
[1730233474615,1.8608,72076.0,72063.0,0.05518506]
[1730233474919,1.8608,72076.0,72070.0,0.1382668]
[1730233474920,0.069385,72072.0,72070.0,0.1382668]
[1730233475218,0.069385,72072.0,72071.0,0.07476424]
[1730233475516,0.13297061,72072.0,72071.0,0.15460113]
[1730233475707,0.20235561,72072.0,72071.0,0.00537824]
[1730233477707,0.069385,72072.0,72071.0,0.00537824]
[1730233478016,0.069392,72065.0,72064.0,9.6e-07]
[1730233478222,0.56316261,72065.0,72064.0,9.6e-07]
[1730233478411,2.06316261,72065.0,72064.0,9.6e-07]
[1730233480122,0.069396,72061.0,72059.0,0.20236761]
[1730233480321,0.3608,72065.0,72059.0,0.13297061]
[1730233480515,0.069393,72064.0,72060.0,0.15192806]
[1730233480715,0.069396,72061.0,72060.0,0.15192806]
[1730233481119,0.069397,72060.0,72059.0,0.15192806]
[1730233481421,0.069399,72057.0,72056.0,0.02561215]
[1730233481621,0.069401,72055.0,72054.0,0.01079992]
[1730233481821,0.20237161,72055.0,72054.0,0.01079992]
[1730233482016,0.069401,72055.0,72054.0,0.01079992]
[1730233482220,0.069401,72055.0,72054.0,0.21317253]
[1730233482413,0.069401,72055.0,72054.0,0.78326645]
[1730233482616,0.069401,72055.0,72054.0,0.80796541]
[1730233482824,0.069401,72055.0,72054.0,0.3085528]
[1730233483132,0.069401,72055.0,72054.0,0.7249128]
[1730233483619,0.069401,72055.0,72054.0,0.6055928]
[1730233483816,0.069401,72055.0,72054.0,0.7249128]
[1730233485016,0.069401,72055.0,72054.0,0.1892328]
[1730233485222,0.20237161,72055.0,72054.0,0.03341717]
[1730233485423,0.20237161,72055.0,72054.0,0.00871821]
[1730233486113,0.069401,72055.0,72054.0,0.00871821]
[1730233487217,0.069401,72055.0,72054.0,0.15350943]
[1730233488330,0.069401,72055.0,72054.0,0.27282943]
[1730233488528,0.069401,72055.0,72054.0,0.75859143]
[1730233488731,0.430198,72059.0,72057.0,0.069399]
[1730233489027,0.430198,72059.0,72058.0,0.2277014]
[1730233489422,0.430198,72059.0,72058.0,0.069398]
[1730233489728,0.069401,72055.0,72054.0,0.19744021]
[1730233490020,0.069401,72055.0,72054.0,0.34653431]
[1730233490222,0.069401,72055.0,72054.0,0.76289431]
[1730233490428,0.069401,72055.0,72054.0,0.64357431]
[1730233490626,0.069401,72055.0,72054.0,0.27713231]
[1730233491425,0.30213408,72055.0,72054.0,0.00871821]
[1730233491728,0.069411,72045.0,72044.0,0.05176883]
[1730233491924,0.47685713,72045.0,72044.0,0.05176883]
[1730233492128,0.47685713,72045.0,72044.0,0.22588856]
[1730233492316,0.47685713,72045.0,72044.0,0.34520856]
[1730233492731,0.05172304,72045.0,72044.0,0.64228856]
[1730233493030,0.05172304,72045.0,72044.0,0.76160756]
[1730233493031,0.069411,72045.0,72044.0,0.76160756]
[1730233493325,0.069411,72045.0,72044.0,0.15647656]
[1730233495531,0.20238161,72045.0,72044.0,0.15647656]
[1730233496328,0.20238161,72045.0,72039.0,0.0052262]
[1730233496329,0.68234122,72045.0,72039.0,0.0052262]
[1730233496531,0.069431,72025.0,72000.0,0.01162059]
[1730233496733,0.069431,72025.0,72007.0,0.03035644]
[1730233496734,0.430247,72008.0,72007.0,0.03035644]
[1730233497237,0.430247,72008.0,72007.0,0.00541329]
[1730233497529,0.43041521,72008.0,72007.0,0.00541329]
[1730233498034,0.56338582,72008.0,72004.0,0.0071491]
[1730233498217,0.06945,72005.0,72004.0,0.0071491]
[1730233498417,0.00016821,72005.0,72004.0,0.27309032]
[1730233498618,0.3608,72015.0,72004.0,0.96245977]
[1730233498817,0.31974402,72015.0,72014.0,0.069441]
[1730233499024,0.31974402,72015.0,72014.0,0.13297061]
[1730233499228,0.069439,72016.0,72014.0,0.28634006]
[1730233499229,0.430239,72016.0,72014.0,0.28634006]
[1730233499830,0.069431,72025.0,72015.0,0.41656]
[1730233500031,0.069431,72025.0,72022.0,0.13297061]
[1730233500237,0.3608,72029.0,72022.0,0.32176361]
[1730233500537,0.3608,72029.0,72027.0,0.069428]
[1730233500837,0.3608,72042.0,72028.0,0.78478882]
[1730233500838,0.069418,72039.0,72028.0,0.78478882]
[1730233501133,0.430215,72042.0,72041.0,0.13297061]
[1730233501326,0.430215,72042.0,72041.0,0.25233061]
[1730233501526,0.430215,72042.0,72041.0,0.40221747]
[1730233502534,0.430215,72042.0,72041.0,0.81865747]
[1730233503037,0.430215,72042.0,72041.0,0.88807247]
[1730233503231,0.430215,72042.0,72041.0,0.81865747]
[1730233503535,0.430215,72042.0,72041.0,0.40221747]
[1730233504633,0.1021,72052.0,72041.0,1.15676164]
[1730233504634,0.3608,72052.0,72041.0,1.15676164]
[1730233504839,0.430205,72052.0,72051.0,0.13297061]
[1730233505337,0.430205,72052.0,72051.0,0.40824925]
[1730233505734,0.3608,72052.0,72051.0,0.95757986]
[1730233505925,0.06939,72067.0,72051.0,1.61837986]
[1730233506241,0.0030027,72072.0,72066.0,0.26594122]
[1730233506424,0.0096,72084.0,72064.0,0.3608]
[1730233506425,0.00331142,72087.0,72071.0,0.62674122]
[1730233506624,0.00331142,72087.0,72086.0,0.13297061]
[1730233506822,0.00331142,72087.0,72086.0,0.80146122]
[1730233507123,0.00331142,72087.0,72086.0,0.82904943]
[1730233508635,0.07268242,72087.0,72086.0,0.16055882]
[1730233508843,0.069372,72085.0,72084.0,0.3608]
[1730233509133,0.069375,72082.0,72081.0,0.11936]
[1730233509525,0.069375,72082.0,72081.0,0.26422008]
[1730233510035,0.069375,72082.0,72081.0,0.3448103]
[1730233510243,0.069375,72082.0,72081.0,0.8803703]
[1730233510428,0.069375,72082.0,72081.0,0.26422008]
[1730233510730,0.069375,72082.0,72081.0,0.14486008]
[1730233510934,0.00331142,72087.0,72078.0,0.02468113]
[1730233510935,0.069378,72079.0,72078.0,0.02468113]
[1730233511136,0.069378,72079.0,72078.0,0.11932]
[1730233511329,0.00331142,72087.0,72078.0,0.56315239]
[1730233511533,0.00331142,72087.0,72085.0,0.19995022]
[1730233511534,0.069371,72086.0,72085.0,0.19995022]
[1730233512038,0.069371,72086.0,72085.0,0.76306261]
[1730233512241,0.069371,72086.0,72085.0,0.14695239]
[1730233512242,0.26932122,72086.0,72085.0,0.14695239]
[1730233512441,0.68548122,72086.0,72085.0,0.07381639]